[Event "*** Titled Tuesday Blitz"]
[Site "Chess.com"]
[Date "2020.05.12"]
[Round "1"]
[White "bmt011"]
[Black "louis198"]
[Result "0-1"]
[WhiteElo "2049"]
[BlackElo "2493"]
[TimeControl "180+1"]
[EndTime "10:07:49 PDT"]
[Termination "louis198 won on time"]

1. d4 {[%clk 0:02:59.4]} 1... e6 {[%clk 0:02:55.2]} 2. Bf4 {[%clk 0:02:57.8]}
2... d5 {[%clk 0:02:55.5]} 3. Nf3 {[%clk 0:02:56.9]} 3... Bd6 {[%clk 0:02:55.7]}
4. Bg3 {[%clk 0:02:55.8]} 4... Ne7 {[%clk 0:02:55.3]} 5. e3 {[%clk 0:02:54.7]}
5... O-O {[%clk 0:02:54.8]} 6. Bd3 {[%clk 0:02:53.7]} 6... c5 {[%clk 0:02:54.4]}
7. c3 {[%clk 0:02:53]} 7... Nbc6 {[%clk 0:02:54.4]} 8. Nbd2 {[%clk 0:02:52.1]}
8... a6 {[%clk 0:02:47.3]} 9. Qb1 {[%clk 0:02:31.8]} 9... h6 {[%clk 0:02:45.6]}
10. Ne5 {[%clk 0:02:27.2]} 10... Bxe5 {[%clk 0:02:44.1]} 11. dxe5 {[%clk
0:02:26]} 11... b5 {[%clk 0:02:25.7]} 12. a4 {[%clk 0:02:20.2]} 12... c4 {[%clk
0:02:23.3]} 13. axb5 {[%clk 0:02:01.7]} 13... Na7 {[%clk 0:02:22.7]} 14. Bc2
{[%clk 0:01:47.9]} 14... Nxb5 {[%clk 0:02:21.1]} 15. O-O {[%clk 0:01:45.7]}
15... Rb8 {[%clk 0:02:20.1]} 16. Qd1 {[%clk 0:01:41.7]} 16... Qb6 {[%clk
0:01:57.5]} 17. Qh5 {[%clk 0:01:37.9]} 17... Nc7 {[%clk 0:01:50.8]} 18. Ra2
{[%clk 0:01:27.7]} 18... Nf5 {[%clk 0:01:49.4]} 19. e4 {[%clk 0:01:09.3]} 19...
dxe4 {[%clk 0:01:44.3]} 20. Nxe4 {[%clk 0:01:04.3]} 20... Nd5 {[%clk 0:01:39.9]}
21. Nd6 {[%clk 0:00:49.9]} 21... Nde7 {[%clk 0:01:27.6]} 22. Nxc4 {[%clk
0:00:41.9]} 22... Qc6 {[%clk 0:01:20.7]} 23. Ne3 {[%clk 0:00:38.4]} 23... Nxe3
{[%clk 0:01:12]} 24. fxe3 {[%clk 0:00:37.8]} 24... Bb7 {[%clk 0:01:11.7]} 25.
Rf2 {[%clk 0:00:34.1]} 25... Qc5 {[%clk 0:00:47.4]} 26. Bf4 {[%clk 0:00:28.2]}
26... Nf5 {[%clk 0:00:15.2]} 27. Bxf5 {[%clk 0:00:25.6]} 27... exf5 {[%clk
0:00:14.7]} 28. Qxf5 {[%clk 0:00:21.1]} 28... Bc8 {[%clk 0:00:14.9]} 29. Qe4
{[%clk 0:00:20]} 29... Be6 {[%clk 0:00:14.8]} 30. Ra4 {[%clk 0:00:18.9]} 30...
Bd5 {[%clk 0:00:12.6]} 31. Qd4 {[%clk 0:00:17.3]} 31... Qc6 {[%clk 0:00:13]} 32.
e4 {[%clk 0:00:15.6]} 32... Be6 {[%clk 0:00:13.2]} 33. c4 {[%clk 0:00:14.5]}
33... Rbd8 {[%clk 0:00:13.4]} 34. Qc3 {[%clk 0:00:13.9]} 34... Qxa4 {[%clk
0:00:13.6]} 35. c5 {[%clk 0:00:13.1]} 35... Rd1+ {[%clk 0:00:13]} 36. Rf1 {[%clk
0:00:11.6]} 36... Rxf1+ {[%clk 0:00:13.5]} 37. Kxf1 {[%clk 0:00:11.7]} 37...
Qxe4 {[%clk 0:00:14.4]} 38. Qg3 {[%clk 0:00:10.7]} 38... Bc4+ {[%clk 0:00:13.1]}
39. Kg1 {[%clk 0:00:10]} 39... Qb1+ {[%clk 0:00:13]} 40. Kf2 {[%clk 0:00:10.3]}
40... Qf1+ {[%clk 0:00:13.5]} 41. Ke3 {[%clk 0:00:10.6]} 41... Qe2+ {[%clk
0:00:13.8]} 42. Kd4 {[%clk 0:00:09.6]} 42... Rd8+ {[%clk 0:00:14.4]} 43. Kc3
{[%clk 0:00:10.5]} 43... Rd3+ {[%clk 0:00:13.6]} 44. Kb4 {[%clk 0:00:11.4]}
44... Rxg3 {[%clk 0:00:13.2]} 45. hxg3 {[%clk 0:00:10.1]} 45... Bb5 {[%clk
0:00:13.9]} 0-1

[Event "*** Titled Tuesday Blitz"]
[Site "Chess.com"]
[Date "2020.05.12"]
[Round "1"]
[White "Kotofeyca"]
[Black "Dedic8"]
[Result "0-1"]
[WhiteElo "2410"]
[BlackElo "2777"]
[TimeControl "180+1"]
[EndTime "10:07:50 PDT"]
[Termination "Dedic8 won by resignation"]

1. d4 {[%clk 0:03:00.9]} 1... Nf6 {[%clk 0:02:57.1]} 2. c4 {[%clk 0:03:00]} 2...
e6 {[%clk 0:02:56.5]} 3. Nf3 {[%clk 0:02:59.9]} 3... d5 {[%clk 0:02:56.6]} 4.
Nc3 {[%clk 0:02:59.1]} 4... Be7 {[%clk 0:02:55.4]} 5. cxd5 {[%clk 0:02:59.1]}
5... exd5 {[%clk 0:02:56.3]} 6. Bg5 {[%clk 0:02:59]} 6... O-O {[%clk 0:02:56.1]}
7. e3 {[%clk 0:02:59.3]} 7... Nbd7 {[%clk 0:02:52.6]} 8. Bd3 {[%clk 0:02:57.9]}
8... Re8 {[%clk 0:02:49.2]} 9. O-O {[%clk 0:02:57.1]} 9... c6 {[%clk 0:02:49.2]}
10. Qc2 {[%clk 0:02:54.9]} 10... Ne4 {[%clk 0:02:44.2]} 11. Bxe4 {[%clk
0:02:51.9]} 11... dxe4 {[%clk 0:02:43.6]} 12. Nxe4 {[%clk 0:02:46.5]} 12... h6
{[%clk 0:02:35.6]} 13. Bxe7 {[%clk 0:02:44]} 13... Qxe7 {[%clk 0:02:36.5]} 14.
Nc5 {[%clk 0:02:40.9]} 14... Nf6 {[%clk 0:02:27]} 15. b4 {[%clk 0:02:26.6]}
15... Nd5 {[%clk 0:02:25.7]} 16. a3 {[%clk 0:02:23.4]} 16... b6 {[%clk
0:02:06.9]} 17. Nb3 {[%clk 0:02:20]} 17... Ba6 {[%clk 0:02:07]} 18. Rfc1 {[%clk
0:02:17.3]} 18... Rac8 {[%clk 0:02:07.3]} 19. Ne5 {[%clk 0:02:11.6]} 19... Qd6
{[%clk 0:02:07.5]} 20. Qf5 {[%clk 0:02:03.4]} 20... f6 {[%clk 0:01:57.5]} 21.
Ng6 {[%clk 0:01:55.3]} 21... Rc7 {[%clk 0:01:54.7]} 22. g3 {[%clk 0:01:48.3]}
22... Bc8 {[%clk 0:01:40.6]} 23. Qf3 {[%clk 0:01:39.5]} 23... Be6 {[%clk
0:01:30.4]} 24. Nd2 {[%clk 0:01:34.9]} 24... Qd7 {[%clk 0:01:25]} 25. Nf4 {[%clk
0:01:21.8]} 25... Bg4 {[%clk 0:01:20.3]} 26. Qg2 {[%clk 0:01:17]} 26... Nxf4
{[%clk 0:01:16.7]} 27. gxf4 {[%clk 0:01:17.9]} 27... Kh8 {[%clk 0:01:05.7]} 28.
Rc3 {[%clk 0:01:15.3]} 28... g5 {[%clk 0:01:02.7]} 29. fxg5 {[%clk 0:01:10.7]}
29... fxg5 {[%clk 0:00:57.2]} 30. Rac1 {[%clk 0:01:10.7]} 30... Bh3 {[%clk
0:00:53]} 31. Qf3 {[%clk 0:00:58.8]} 31... Rec8 {[%clk 0:00:42.3]} 32. Ne4
{[%clk 0:00:46.6]} 32... Bf5 {[%clk 0:00:39.4]} 33. Ng3 {[%clk 0:00:45.6]} 33...
Bg6 {[%clk 0:00:39]} 34. Qf6+ {[%clk 0:00:44.8]} 34... Kh7 {[%clk 0:00:39.1]}
35. b5 {[%clk 0:00:33.4]} 35... cxb5 {[%clk 0:00:29.8]} 36. Rxc7 {[%clk
0:00:28.6]} 36... Rxc7 {[%clk 0:00:30.7]} 37. Rxc7 {[%clk 0:00:28.1]} 37... Qxc7
{[%clk 0:00:31.6]} 38. e4 {[%clk 0:00:23.3]} 38... a5 {[%clk 0:00:31.6]} 39. d5
{[%clk 0:00:22.8]} 39... b4 {[%clk 0:00:30.6]} 40. axb4 {[%clk 0:00:19.8]} 40...
axb4 {[%clk 0:00:30]} 41. d6 {[%clk 0:00:20.7]} 41... Qd7 {[%clk 0:00:29.3]} 42.
e5 {[%clk 0:00:19.8]} 42... b3 {[%clk 0:00:29.6]} 43. Ne2 {[%clk 0:00:13.3]}
43... b2 {[%clk 0:00:26.2]} 44. Nc3 {[%clk 0:00:13.3]} 44... b5 {[%clk
0:00:24.4]} 45. Qe7+ {[%clk 0:00:07.7]} 45... Qxe7 {[%clk 0:00:24.4]} 46. dxe7
{[%clk 0:00:08.6]} 46... b4 {[%clk 0:00:24.8]} 47. Nb1 {[%clk 0:00:06.5]} 47...
Kg7 {[%clk 0:00:25.1]} 48. Nd2 {[%clk 0:00:06.5]} 48... Kf7 {[%clk 0:00:24.5]}
49. Kf1 {[%clk 0:00:07.4]} 49... b1=Q+ {[%clk 0:00:24.4]} 50. Ke2 {[%clk
0:00:08.3]} 50... Qd3+ {[%clk 0:00:24.2]} 0-1

[Event "*** Titled Tuesday Blitz"]
[Site "Chess.com"]
[Date "2020.05.12"]
[Round "1"]
[White "ChronicUnhappiness"]
[Black "stanyga"]
[Result "0-1"]
[WhiteElo "2331"]
[BlackElo "2654"]
[TimeControl "180+1"]
[EndTime "10:07:50 PDT"]
[Termination "stanyga won by resignation"]

1. c4 {[%clk 0:02:58.1]} 1... Nf6 {[%clk 0:02:58.3]} 2. Nf3 {[%clk 0:02:56.8]}
2... b6 {[%clk 0:02:55.8]} 3. Nc3 {[%clk 0:02:55.2]} 3... Bb7 {[%clk 0:02:56.7]}
4. g3 {[%clk 0:02:49.1]} 4... e5 {[%clk 0:02:53.2]} 5. Bg2 {[%clk 0:02:47.6]}
5... d6 {[%clk 0:02:53.2]} 6. O-O {[%clk 0:02:46.6]} 6... Nbd7 {[%clk
0:02:52.7]} 7. d4 {[%clk 0:02:41.2]} 7... Qc8 {[%clk 0:02:18.4]} 8. d5 {[%clk
0:02:39.7]} 8... g6 {[%clk 0:02:17.4]} 9. e4 {[%clk 0:02:38.6]} 9... Bg7 {[%clk
0:02:17.6]} 10. Ne1 {[%clk 0:02:38.5]} 10... O-O {[%clk 0:02:17.5]} 11. Be3
{[%clk 0:02:26.8]} 11... Re8 {[%clk 0:02:16.2]} 12. b4 {[%clk 0:02:18.9]} 12...
c6 {[%clk 0:02:11.2]} 13. Rc1 {[%clk 0:02:15.7]} 13... c5 {[%clk 0:02:05.8]} 14.
a3 {[%clk 0:02:13.9]} 14... cxb4 {[%clk 0:01:59.9]} 15. axb4 {[%clk 0:02:13.2]}
15... a5 {[%clk 0:02:00.6]} 16. Nb5 {[%clk 0:02:08.3]} 16... Qb8 {[%clk
0:01:58.8]} 17. Nd3 {[%clk 0:02:01.9]} 17... Rc8 {[%clk 0:01:51.4]} 18. Bh3
{[%clk 0:01:50.4]} 18... h6 {[%clk 0:01:47.7]} 19. f3 {[%clk 0:01:49.7]} 19...
Ba6 {[%clk 0:01:44.5]} 20. Qb3 {[%clk 0:01:47.5]} 20... Kh7 {[%clk 0:01:07]} 21.
Rc2 {[%clk 0:01:46.9]} 21... h5 {[%clk 0:01:05.7]} 22. Rb1 {[%clk 0:01:45.3]}
22... Bh6 {[%clk 0:01:04.6]} 23. Bf2 {[%clk 0:01:42.1]} 23... Bxb5 {[%clk
0:00:53.6]} 24. cxb5 {[%clk 0:01:41.1]} 24... a4 {[%clk 0:00:53]} 25. Qa2 {[%clk
0:01:35]} 25... Rxc2 {[%clk 0:00:50.2]} 26. Qxc2 {[%clk 0:01:34.6]} 26... Qc8
{[%clk 0:00:49.9]} 27. Qc6 {[%clk 0:01:33.4]} 27... a3 {[%clk 0:00:43.2]} 28.
Ra1 {[%clk 0:01:32.5]} 28... Bd2 {[%clk 0:00:34.3]} 29. Qxc8 {[%clk 0:01:18.1]}
29... Rxc8 {[%clk 0:00:32.9]} 30. Rxa3 {[%clk 0:01:18.5]} 30... Rc3 {[%clk
0:00:29.3]} 31. Rxc3 {[%clk 0:01:14.2]} 31... Bxc3 {[%clk 0:00:30.2]} 32. Kf1
{[%clk 0:01:05.5]} 32... Kg7 {[%clk 0:00:30.1]} 33. Ke2 {[%clk 0:01:05.3]} 33...
Kf8 {[%clk 0:00:30.5]} 34. Kd1 {[%clk 0:01:05.2]} 34... Ke7 {[%clk 0:00:24.6]}
35. Kc2 {[%clk 0:01:04.9]} 35... Ba1 {[%clk 0:00:22.2]} 36. Kb1 {[%clk
0:00:51.6]} 36... Bc3 {[%clk 0:00:20.9]} 37. Kc2 {[%clk 0:00:47.8]} 37... Ba1
{[%clk 0:00:20.9]} 38. Be1 {[%clk 0:00:47]} 38... Bd4 {[%clk 0:00:20.2]} 39. Bf2
{[%clk 0:00:45.8]} 39... Bxf2 {[%clk 0:00:18.9]} 40. Nxf2 {[%clk 0:00:45]} 40...
Kd8 {[%clk 0:00:19.8]} 41. Bxd7 {[%clk 0:00:44.4]} 41... Kxd7 {[%clk 0:00:18.5]}
42. Nd3 {[%clk 0:00:45.3]} 42... Kc7 {[%clk 0:00:18.1]} 43. Kb3 {[%clk
0:00:45.1]} 43... Kd7 {[%clk 0:00:18.2]} 44. Kc4 {[%clk 0:00:44.9]} 44... Kc7
{[%clk 0:00:18.3]} 45. h3 {[%clk 0:00:45.2]} 45... Kd7 {[%clk 0:00:18.2]} 46. f4
{[%clk 0:00:45.4]} 46... exf4 {[%clk 0:00:16.9]} 47. e5 {[%clk 0:00:44.7]} 47...
fxg3 {[%clk 0:00:15.4]} 48. Ne1 {[%clk 0:00:38.2]} 48... dxe5 {[%clk 0:00:13.7]}
49. Ng2 {[%clk 0:00:39.1]} 49... Kd6 {[%clk 0:00:13.7]} 50. Ne3 {[%clk 0:00:38]}
50... Ne4 {[%clk 0:00:13.8]} 51. Kd3 {[%clk 0:00:37.2]} 51... f5 {[%clk
0:00:14]} 52. h4 {[%clk 0:00:35.8]} 52... Nf6 {[%clk 0:00:12.5]} 53. Nc4+ {[%clk
0:00:35.1]} 53... Kxd5 {[%clk 0:00:11.6]} 54. Nxb6+ {[%clk 0:00:36]} 54... Ke6
{[%clk 0:00:11.3]} 55. Nc4 {[%clk 0:00:36.9]} 55... g2 {[%clk 0:00:09.5]} 0-1

[Event "*** Titled Tuesday Blitz"]
[Site "Chess.com"]
[Date "2020.05.12"]
[Round "1"]
[White "Kate1606"]
[Black "GM_LOADING"]
[Result "0-1"]
[WhiteElo "2062"]
[BlackElo "2493"]
[TimeControl "180+1"]
[EndTime "10:07:52 PDT"]
[Termination "GM_LOADING won by checkmate"]

1. e4 {[%clk 0:03:00.9]} 1... e6 {[%clk 0:02:56.9]} 2. d4 {[%clk 0:03:00.5]}
2... d5 {[%clk 0:02:57]} 3. Nc3 {[%clk 0:03:00.5]} 3... Nf6 {[%clk 0:02:56.8]}
4. Bg5 {[%clk 0:02:59.9]} 4... dxe4 {[%clk 0:02:56.5]} 5. Nxe4 {[%clk
0:02:59.1]} 5... Be7 {[%clk 0:02:57]} 6. Bxf6 {[%clk 0:02:58.6]} 6... Bxf6
{[%clk 0:02:57.9]} 7. Nf3 {[%clk 0:02:58.2]} 7... Nd7 {[%clk 0:02:57.5]} 8. Qd2
{[%clk 0:02:55.5]} 8... O-O {[%clk 0:02:57.2]} 9. O-O-O {[%clk 0:02:54.8]} 9...
Be7 {[%clk 0:02:57.6]} 10. Kb1 {[%clk 0:02:50.9]} 10... Nf6 {[%clk 0:02:37.2]}
11. Nc3 {[%clk 0:02:42.9]} 11... b6 {[%clk 0:02:35.4]} 12. h4 {[%clk 0:02:38.9]}
12... Bb7 {[%clk 0:02:34.2]} 13. Rg1 {[%clk 0:02:27.1]} 13... Bb4 {[%clk
0:02:30.6]} 14. a3 {[%clk 0:02:20.8]} 14... Ne4 {[%clk 0:02:30.1]} 15. Qe3
{[%clk 0:02:11.6]} 15... Nxc3+ {[%clk 0:02:21.8]} 16. bxc3 {[%clk 0:02:11.3]}
16... Bxa3 {[%clk 0:02:22]} 17. c4 {[%clk 0:02:05.3]} 17... Qe7 {[%clk
0:02:02.5]} 18. Ng5 {[%clk 0:01:50.2]} 18... Qb4+ {[%clk 0:01:42.5]} 19. Qb3
{[%clk 0:01:49.3]} 19... Qxb3+ {[%clk 0:01:42.7]} 20. cxb3 {[%clk 0:01:50.2]}
20... h6 {[%clk 0:01:37.8]} 21. Nf3 {[%clk 0:01:45.8]} 21... Rad8 {[%clk
0:01:32.3]} 22. Be2 {[%clk 0:01:42]} 22... Be7 {[%clk 0:01:28.5]} 23. g3 {[%clk
0:01:38.9]} 23... Bf6 {[%clk 0:01:26.9]} 24. Ne5 {[%clk 0:01:38.5]} 24... c5
{[%clk 0:01:22.2]} 25. f4 {[%clk 0:01:22.8]} 25... cxd4 {[%clk 0:01:19.1]} 26.
Rd2 {[%clk 0:01:20.9]} 26... Bxe5 {[%clk 0:00:46.1]} 27. fxe5 {[%clk 0:01:20.6]}
27... f6 {[%clk 0:00:46.5]} 28. exf6 {[%clk 0:01:16.8]} 28... Rxf6 {[%clk
0:00:47.4]} 29. Bg4 {[%clk 0:01:02.2]} 29... e5 {[%clk 0:00:44.2]} 30. Rgd1
{[%clk 0:00:56.4]} 30... d3 {[%clk 0:00:39.1]} 31. Kb2 {[%clk 0:00:46.8]} 31...
e4 {[%clk 0:00:38.9]} 32. Kc3 {[%clk 0:00:41.7]} 32... Rg6 {[%clk 0:00:20.5]}
33. Bh5 {[%clk 0:00:29.1]} 33... Rxg3 {[%clk 0:00:15.4]} 34. b4 {[%clk
0:00:24.5]} 34... Rc8 {[%clk 0:00:12.6]} 35. Rf1 {[%clk 0:00:19]} 35... Bd5
{[%clk 0:00:06.8]} 36. c5 {[%clk 0:00:17.9]} 36... bxc5 {[%clk 0:00:06.7]} 37.
bxc5 {[%clk 0:00:16.7]} 37... Kh7 {[%clk 0:00:04.5]} 38. Kd4 {[%clk 0:00:16.7]}
38... Bc6 {[%clk 0:00:04.8]} 39. Rf7 {[%clk 0:00:13.9]} 39... Rd8+ {[%clk
0:00:04.6]} 40. Kc3 {[%clk 0:00:12.1]} 40... Bb5 {[%clk 0:00:04.9]} 41. Rxa7
{[%clk 0:00:11.6]} 41... e3 {[%clk 0:00:05]} 42. Rd1 {[%clk 0:00:10.9]} 42... e2
{[%clk 0:00:03.9]} 43. Bxe2 {[%clk 0:00:10.7]} 43... dxe2+ {[%clk 0:00:04]} 44.
Kc2 {[%clk 0:00:08.7]} 44... exd1=Q+ {[%clk 0:00:04.3]} 45. Kb2 {[%clk
0:00:07.2]} 45... Rd2# {[%clk 0:00:04.3]} 0-1

[Event "*** Titled Tuesday Blitz"]
[Site "Chess.com"]
[Date "2020.05.12"]
[Round "1"]
[White "bascheyaro"]
[Black "Hadza_3"]
[Result "1-0"]
[WhiteElo "2703"]
[BlackElo "2363"]
[TimeControl "180+1"]
[EndTime "10:07:53 PDT"]
[Termination "bascheyaro won on time"]

1. d4 {[%clk 0:02:17.3]} 1... Nf6 {[%clk 0:02:59.4]} 2. Nf3 {[%clk 0:02:15.5]}
2... g6 {[%clk 0:02:59.5]} 3. Bf4 {[%clk 0:02:11.9]} 3... Bg7 {[%clk 0:02:59.5]}
4. e3 {[%clk 0:02:12.5]} 4... d6 {[%clk 0:03:00.4]} 5. c4 {[%clk 0:02:11.8]}
5... O-O {[%clk 0:03:00.5]} 6. Nc3 {[%clk 0:02:12.3]} 6... b6 {[%clk 0:03:01.4]}
7. Be2 {[%clk 0:02:12.5]} 7... Bb7 {[%clk 0:03:02.3]} 8. O-O {[%clk 0:02:13]}
8... Nbd7 {[%clk 0:03:03.2]} 9. Qc2 {[%clk 0:02:13.2]} 9... c5 {[%clk
0:03:03.7]} 10. Rad1 {[%clk 0:02:12.7]} 10... cxd4 {[%clk 0:03:03.8]} 11. exd4
{[%clk 0:02:12.3]} 11... Rc8 {[%clk 0:03:04]} 12. Qb1 {[%clk 0:02:11.9]} 12...
Nh5 {[%clk 0:03:04]} 13. Be3 {[%clk 0:02:11.7]} 13... e5 {[%clk 0:02:54.5]} 14.
dxe5 {[%clk 0:02:11.3]} 14... dxe5 {[%clk 0:02:55.4]} 15. Nd5 {[%clk 0:01:51.8]}
15... Qe8 {[%clk 0:02:31.8]} 16. Ng5 {[%clk 0:01:51.6]} 16... Nhf6 {[%clk
0:02:26.7]} 17. Ne4 {[%clk 0:01:46.3]} 17... Nxd5 {[%clk 0:02:09]} 18. cxd5
{[%clk 0:01:44.4]} 18... Qe7 {[%clk 0:01:57.7]} 19. b3 {[%clk 0:01:31]} 19...
Rfd8 {[%clk 0:01:36.6]} 20. d6 {[%clk 0:01:31.1]} 20... Qh4 {[%clk 0:01:36.2]}
21. Ng5 {[%clk 0:01:20.1]} 21... h6 {[%clk 0:00:57.4]} 22. Nf3 {[%clk
0:01:01.9]} 22... Qf6 {[%clk 0:00:53.6]} 23. b4 {[%clk 0:00:36.6]} 23... Nf8
{[%clk 0:00:47.8]} 24. h4 {[%clk 0:00:29.3]} 24... Rxd6 {[%clk 0:00:42.8]} 25.
Rxd6 {[%clk 0:00:29.4]} 25... Qxd6 {[%clk 0:00:43.7]} 26. Rd1 {[%clk 0:00:29.9]}
26... Qc7 {[%clk 0:00:38.5]} 27. h5 {[%clk 0:00:28.9]} 27... Qc2 {[%clk
0:00:32.8]} 28. hxg6 {[%clk 0:00:17.2]} 28... Qxb1 {[%clk 0:00:29]} 29. gxf7+
{[%clk 0:00:16.8]} 29... Kxf7 {[%clk 0:00:29.9]} 30. Rxb1 {[%clk 0:00:17.2]}
30... Bd5 {[%clk 0:00:27.5]} 31. a4 {[%clk 0:00:17]} 31... Ne6 {[%clk
0:00:24.4]} 32. a5 {[%clk 0:00:17.3]} 32... Rc6 {[%clk 0:00:19]} 33. axb6 {[%clk
0:00:17.3]} 33... axb6 {[%clk 0:00:19.9]} 34. b5 {[%clk 0:00:17.7]} 34... Rd6
{[%clk 0:00:20.4]} 35. Rd1 {[%clk 0:00:17.3]} 35... Ke7 {[%clk 0:00:18.5]} 36.
Ne1 {[%clk 0:00:17.1]} 36... Bb3 {[%clk 0:00:17.8]} 37. Rb1 {[%clk 0:00:17.4]}
37... Bd5 {[%clk 0:00:15.6]} 38. g3 {[%clk 0:00:16.6]} 38... Nd4 {[%clk
0:00:15.4]} 39. Bf1 {[%clk 0:00:16.8]} 39... Nf3+ {[%clk 0:00:14.2]} 40. Nxf3
{[%clk 0:00:16.8]} 40... Bxf3 {[%clk 0:00:15.1]} 41. Rc1 {[%clk 0:00:17.1]}
41... Kf6 {[%clk 0:00:08.9]} 42. Kh2 {[%clk 0:00:17.1]} 42... Bf8 {[%clk
0:00:07.2]} 43. Rc7 {[%clk 0:00:16.7]} 43... e4 {[%clk 0:00:05.4]} 44. Rb7
{[%clk 0:00:14.8]} 44... Kg6 {[%clk 0:00:05.1]} 45. Rxb6 {[%clk 0:00:14.9]}
45... Kf6 {[%clk 0:00:04.7]} 46. Ra6 {[%clk 0:00:12.8]} 46... h5 {[%clk
0:00:04.7]} 47. Bh3 {[%clk 0:00:12]} 47... Ke5 {[%clk 0:00:01.6]} 48. Bf4+
{[%clk 0:00:11.8]} 1-0

[Event "*** Titled Tuesday Blitz"]
[Site "Chess.com"]
[Date "2020.05.12"]
[Round "1"]
[White "Bathory44"]
[Black "Nastya_Rakhmangulova"]
[Result "1-0"]
[WhiteElo "2587"]
[BlackElo "2270"]
[TimeControl "180+1"]
[EndTime "10:07:54 PDT"]
[Termination "Bathory44 won on time"]

1. e4 {[%clk 0:03:00.9]} 1... d5 {[%clk 0:02:59.9]} 2. exd5 {[%clk 0:03:00.8]}
2... Qxd5 {[%clk 0:03:00.8]} 3. Nc3 {[%clk 0:03:00.4]} 3... Qd6 {[%clk
0:03:01.4]} 4. d4 {[%clk 0:03:00.9]} 4... Nf6 {[%clk 0:03:01.2]} 5. Nf3 {[%clk
0:03:01.2]} 5... Bg4 {[%clk 0:03:01.4]} 6. h3 {[%clk 0:03:00.6]} 6... Bh5 {[%clk
0:03:02]} 7. g4 {[%clk 0:03:00.4]} 7... Bg6 {[%clk 0:03:02.6]} 8. Ne5 {[%clk
0:03:00.7]} 8... Nbd7 {[%clk 0:03:03.2]} 9. Nc4 {[%clk 0:02:52.8]} 9... Qe6+
{[%clk 0:03:00.8]} 10. Ne3 {[%clk 0:02:45.5]} 10... h5 {[%clk 0:02:56.8]} 11. d5
{[%clk 0:02:44.5]} 11... Qe5 {[%clk 0:02:39.6]} 12. Qf3 {[%clk 0:02:15.1]} 12...
hxg4 {[%clk 0:02:34.3]} 13. hxg4 {[%clk 0:02:14.8]} 13... Rxh1 {[%clk
0:02:33.3]} 14. Qxh1 {[%clk 0:02:15.7]} 14... Nxg4 {[%clk 0:02:32.3]} 15. Bh3
{[%clk 0:02:10.8]} 15... Ngf6 {[%clk 0:02:24.4]} 16. Bd2 {[%clk 0:02:05.8]}
16... O-O-O {[%clk 0:01:47.8]} 17. O-O-O {[%clk 0:01:57.3]} 17... Ne4 {[%clk
0:01:05.1]} 18. Be1 {[%clk 0:01:49.8]} 18... Nxc3 {[%clk 0:00:53.7]} 19. Bxc3
{[%clk 0:01:49.2]} 19... Qe4 {[%clk 0:00:54.3]} 20. Bg2 {[%clk 0:01:46.7]} 20...
Qa4 {[%clk 0:00:51.1]} 21. Kb1 {[%clk 0:01:29.2]} 21... Nc5 {[%clk 0:00:49.7]}
22. Rd4 {[%clk 0:01:28.6]} 22... Qa6 {[%clk 0:00:44]} 23. Rb4 {[%clk 0:01:21.5]}
23... e6 {[%clk 0:00:24.9]} 24. dxe6 {[%clk 0:01:20]} 24... fxe6 {[%clk
0:00:20]} 25. a3 {[%clk 0:01:07.6]} 25... c6 {[%clk 0:00:17.3]} 26. Qh3 {[%clk
0:01:00.3]} 26... Qe2 {[%clk 0:00:11.9]} 27. Qg3 {[%clk 0:00:51.8]} 27... Rd1+
{[%clk 0:00:11.4]} 28. Ka2 {[%clk 0:00:48.1]} 28... Bxc2 {[%clk 0:00:10.7]} 29.
Qg4 {[%clk 0:00:20.1]} 29... Bb1+ {[%clk 0:00:10]} 30. Ka1 {[%clk 0:00:18.6]}
30... Bf5+ {[%clk 0:00:10.1]} 31. Nxd1 {[%clk 0:00:18.3]} 31... Bxg4 {[%clk
0:00:09.3]} 32. Ne3 {[%clk 0:00:18.9]} 32... Nd3 {[%clk 0:00:05.9]} 33. Rxg4
{[%clk 0:00:16.7]} 33... Nc1 {[%clk 0:00:04.4]} 34. Rf4 {[%clk 0:00:13.4]} 34...
Nb3+ {[%clk 0:00:04.6]} 35. Ka2 {[%clk 0:00:13.3]} 35... Qd3 {[%clk 0:00:05]}
36. Kxb3 {[%clk 0:00:13.2]} 36... a5 {[%clk 0:00:04.3]} 37. Rxf8+ {[%clk
0:00:13.2]} 37... Kd7 {[%clk 0:00:03.7]} 38. Rf7+ {[%clk 0:00:14.1]} 38... Ke8
{[%clk 0:00:03.9]} 39. Rxb7 {[%clk 0:00:14.1]} 39... a4+ {[%clk 0:00:03]} 40.
Ka2 {[%clk 0:00:14.5]} 40... c5 {[%clk 0:00:01.3]} 41. Bc6+ {[%clk 0:00:14.5]}
41... Kf8 {[%clk 0:00:01.2]} 42. Bxg7+ {[%clk 0:00:15]} 42... Kg8 {[%clk
0:00:02.1]} 43. Bc3 {[%clk 0:00:15.7]} 43... c4 {[%clk 0:00:02.1]} 44. Bb5
{[%clk 0:00:15.5]} 44... Qe2 {[%clk 0:00:02.2]} 45. Bxc4 {[%clk 0:00:15.9]}
45... Qc2 {[%clk 0:00:02.3]} 46. Bxe6+ {[%clk 0:00:15.7]} 46... Kf8 {[%clk
0:00:03.2]} 47. Bb4+ {[%clk 0:00:15.9]} 47... Ke8 {[%clk 0:00:03.3]} 48. Bc4
{[%clk 0:00:15.6]} 48... Kd8 {[%clk 0:00:03.2]} 49. Rb5 {[%clk 0:00:14.1]} 49...
Qc1 {[%clk 0:00:01.5]} 50. Rd5+ {[%clk 0:00:15]} 50... Kc8 {[%clk 0:00:01.3]}
51. Rd1 {[%clk 0:00:15.3]} 1-0